bitfinex-derivatives/quotes_SOLF0:USTF0_20240923
["timestamp","ask_amount","ask_price","bid_price","bid_amount"]
[1727097038551,3.4986,142.94,142.91,3.499]
[1727097038757,7.54,142.96,142.91,7.54]
[1727097039147,7.54,142.96,142.92,3.4989]
[1727097039148,3.4985,142.94,142.92,3.4989]
[1727097039352,3.4985,142.94,142.91,7.54]
[1727097039751,3.4985,142.94,142.91,11.039]
[1727097039962,7.54,142.95,142.9,8.9695]
[1727097040251,7.54,142.92,142.88,8.8938]
[1727097040453,3.4993,142.91,142.88,8.8938]
[1727097040847,7.54,142.92,142.88,8.8938]
[1727097041050,7.54,142.92,142.87,7.54]
[1727097041253,7.54,142.91,142.87,7.54]
[1727097041446,7.54,142.91,142.87,11.04]
[1727097041752,3.4995,142.9,142.87,11.04]
[1727097042852,3.4994,142.91,142.88,3.4998]
[1727097043452,3.4994,142.91,142.87,7.54]
[1727097043957,3.4994,142.91,142.88,3.4998]
[1727097044259,3.55068402,142.95,142.86,87.86518248]
[1727097044260,7.54,142.9,142.86,87.86518248]
[1727097044647,3.4999,142.89,142.86,87.86518248]
[1727097044853,7.54,142.89,142.86,80.32518248]
[1727097045350,3.5001,142.88,142.86,80.32518248]
[1727097045550,3.5001,142.88,142.85,11.0404]
[1727097045751,7.54,142.88,142.82,8.9716]
[1727097046255,7.54,142.88,142.83,3.501]
[1727097046458,3.5005,142.86,142.83,3.501]
[1727097046849,3.5005,142.86,142.82,1.4316]
[1727097047062,3.5005,142.86,142.84,3.5009]
[1727097047455,3.55068402,142.95,142.85,3.5006]
[1727097047456,7.54,142.89,142.85,3.5006]
[1727097047755,7.54,142.9,142.85,7.54]
[1727097047958,6.9962,142.96,142.86,7.54]
[1727097048158,7.54,142.91,142.85,7.54]
[1727097048866,3.5,142.88,142.85,7.54]
[1727097049863,3.5,142.88,142.86,3.5004]
[1727097050462,11.0398,142.89,142.86,3.5004]
[1727097052064,3.4998,142.89,142.86,3.5004]
[1727097052266,6.9962,142.96,142.87,7.54]
[1727097052467,7.54,142.92,142.87,7.54]
[1727097052665,3.4994,142.91,142.87,7.54]
[1727097053463,3.4994,142.91,142.88,3.4998]
[1727097055464,3.4994,142.91,142.89,3.4997]
[1727097055665,2.7402,142.98,142.89,7.54]
[1727097055861,7.54,142.95,142.9,3.4992]
[1727097056066,7.54,142.95,142.91,7.54]
[1727097056760,3.4986,142.94,142.92,3.4989]
[1727097057161,7.54,142.95,142.91,7.54]
[1727097057865,7.54,142.95,142.91,11.039]
[1727097057866,3.4987,142.94,142.91,11.039]
[1727097058259,3.4988,142.93,142.9,3.4992]
[1727097058461,7.54,142.94,142.89,7.54]
[1727097058661,7.54,142.94,142.87,4.2382]
[1727097058662,7.54,142.92,142.88,7.54]
[1727097059063,3.4992,142.91,142.87,4.2382]
[1727097059263,13.26827167,142.98,142.88,7.54]
[1727097059568,7.54,142.94,142.88,7.54]
[1727097059871,3.4989,142.93,142.9,3.4992]
[1727097060166,3.4986,142.94,142.89,7.54]
[1727097060559,7.54,142.95,142.89,7.54]
[1727097061267,3.4985,142.94,142.89,7.54]
[1727097062360,7.54,142.95,142.91,7.54]
[1727097062565,7.54,142.96,142.92,7.54]
[1727097062770,3.4979,142.97,142.94,3.4983]
[1727097063470,3.4979,142.97,142.94,3.4984]
[1727097064559,7.54,142.98,142.96,3.4978]
[1727097064759,8.972,142.99,142.94,7.54]
[1727097065263,7.54,142.99,142.94,7.54]
[1727097065470,3.4977,142.98,142.96,7.54]
[1727097065666,1.4259,143.02,142.97,7.54]
[1727097065865,3.4969,143.01,142.97,7.54]
[1727097066063,3.4969,143.01,142.99,7.54]
[1727097066366,7.54,143.03,142.99,11.0371]
[1727097066863,3.4967,143.02,142.99,11.0371]
[1727097067063,7.54,143.03,142.99,11.0371]
[1727097067461,7.54,143.03,142.99,3.4971]
[1727097067769,3.4969,143.01,142.98,3.4974]
[1727097068272,7.54,143.0,142.95,7.54]
[1727097068663,3.4977,142.98,142.95,3.4981]
[1727097068866,7.54,142.99,142.95,3.4981]
[1727097069065,7.54,142.99,142.94,7.54]
[1727097069273,3.4977,142.98,142.95,3.4981]
[1727097069573,7.54,142.98,142.94,7.54]
[1727097069974,11.0376,142.98,142.95,3.498]
[1727097070370,7.54,143.0,142.95,7.54]
[1727097070678,3.4973,142.99,142.96,3.4978]
[1727097071564,3.4973,142.99,142.97,3.4977]
[1727097071769,3.497,143.0,142.97,7.54]
[1727097072062,3.497,143.0,142.97,11.0376]
[1727097073371,3.497,143.0,142.98,3.4975]
[1727097074268,3.4968,143.01,142.96,11.75]
[1727097074972,3.4968,143.01,142.98,3.4973]
[1727097075370,3.4968,143.01,142.96,11.75]
[1727097075672,11.75,143.08,142.99,11.75]
[1727097076069,3.4959,143.05,143.02,3.4963]
[1727097076970,3.4959,143.05,143.01,3.4966]
[1727097077977,3.4959,143.05,143.02,3.4965]
[1727097078178,3.4956,143.06,142.99,11.75]
[1727097078375,3.4956,143.06,143.03,3.4962]
[1727097078576,11.75,143.08,143.03,3.4962]
[1727097078771,3.4956,143.06,143.03,3.4962]
[1727097079383,11.75,143.1,143.05,3.4956]
[1727097079586,15.8148,143.12,143.05,3.4956]
[1727097079883,3.495,143.09,143.05,3.4956]
[1727097080579,3.495,143.08,143.04,3.4959]
[1727097081385,3.4953,143.07,143.04,3.4959]
[1727097082884,3.4953,143.07,143.03,15.2462]
[1727097083289,11.75,143.1,143.01,11.75]
[1727097083485,11.75,143.1,143.02,3.4964]
[1727097083692,11.75,143.1,143.01,11.75]
[1727097083993,11.75,143.1,143.03,3.4961]
[1727097084496,3.4957,143.06,143.03,3.4961]
[1727097085191,3.4958,143.05,143.02,3.4964]
[1727097085390,11.75,143.08,142.99,92.0010999]
[1727097086093,3.4965,143.03,143.0,3.4969]
[1727097086294,11.75,143.07,142.99,80.2510999]
[1727097086504,13.2014,143.07,142.99,80.2510999]
[1727097086691,3.497,143.0,142.99,80.2510999]
[1727097087490,3.4968,143.01,142.96,4.2098]
[1727097087694,1.3734,143.06,142.99,3.497]
[1727097088100,3.4964,143.03,142.96,15.9598]
[1727097088794,1.3734,143.06,142.96,15.9598]
[1727097088795,3.4965,143.02,142.96,15.9598]
[1727097089193,1.3734,143.06,143.0,3.4969]
[1727097089393,3.4965,143.02,142.96,15.9598]
[1727097089903,2.8929,143.07,142.98,11.75]
[1727097090402,2.8929,143.07,143.01,3.4967]
[1727097090997,2.8929,143.07,143.0,3.4969]
[1727097091304,3.4964,143.03,143.0,3.4969]
[1727097092306,3.4966,143.02,142.99,3.497]
[1727097092507,3.4966,143.02,142.98,11.75]
[1727097092806,3.4966,143.02,142.99,3.497]
[1727097093299,3.4966,143.02,143.0,3.497]
[1727097093502,3.4968,143.01,142.98,11.75]
[1727097094203,3.4968,143.01,142.99,3.4971]
[1727097094399,3.4968,143.01,142.99,11.0171]
[1727097094703,3.4968,143.01,142.99,7.52]
[1727097095002,7.52,143.03,142.96,4.2098]
[1727097095201,7.52,143.03,142.97,7.52]
[1727097095403,3.4971,143.0,142.97,11.0176]
[1727097095899,3.4971,143.0,142.98,3.4974]
[1727097096404,3.4971,143.0,142.98,11.0174]
[1727097096609,3.4968,143.01,142.98,11.0174]
[1727097097401,3.4967,143.02,143.0,7.52]
[1727097100502,3.4967,143.01,142.98,11.0174]
[1727097101405,3.4972,142.99,142.97,7.52]
[1727097103106,3.4971,143.0,142.97,7.52]
[1727097103404,3.4971,143.0,142.98,7.52]
[1727097105109,7.52,143.05,142.99,7.52]
[1727097105613,3.4964,143.03,143.0,3.497]
[1727097105803,7.52,143.05,143.0,3.497]
[1727097106011,3.4966,143.02,142.99,11.0171]
[1727097107106,3.4968,143.01,142.99,11.0171]
[1727097107303,7.52,143.03,142.98,7.52]
[1727097107702,3.4969,143.01,142.98,7.52]
[1727097109214,3.4969,143.01,142.99,3.4972]
[1727097109912,3.497,143.0,142.98,7.52]
[1727097110805,3.4972,142.99,142.98,7.52]
[1727097111215,7.52,143.01,142.97,7.52]
[1727097111416,7.52,143.0,142.95,7.52]
[1727097111819,7.52,143.0,142.95,11.018]
[1727097112117,3.4976,142.98,142.95,11.018]
[1727097115519,3.4976,142.98,142.96,3.498]
[1727097116713,7.52,142.99,142.92,81.63323983]
[1727097117019,7.52,142.97,142.92,89.15323983]
[1727097117215,7.52,142.96,142.92,91.30313983]
[1727097117422,7.52,142.96,142.92,80.28433983]
[1727097117812,3.4986,142.94,142.92,80.28433983]
[1727097118214,7.52,142.95,142.92,80.28433983]
[1727097118419,7.52,142.95,142.89,7.52]
[1727097118629,7.52,142.93,142.89,7.52]
[1727097118920,7.52,142.93,142.88,8.973]
[1727097119322,3.4991,142.92,142.88,12.4728]
[1727097120226,3.4991,142.92,142.89,3.4996]
[1727097120728,11.77,142.97,142.88,13.223]
[1727097121321,3.4984,142.95,142.91,3.499]
[1727097121521,3.4984,142.95,142.88,13.223]
[1727097121728,3.4984,142.95,142.89,1.4605]
[1727097121924,13.1568,143.01,142.92,11.77]
[1727097122526,13.1568,143.01,142.94,3.4983]
[1727097122918,3.4978,142.97,142.94,3.4983]
[1727097123337,11.77,142.99,142.9,13.1277]
[1727097123844,11.77,142.99,142.93,3.4987]
[1727097124840,3.4981,142.96,142.93,3.4987]
[1727097126540,11.77,142.99,142.9,13.1277]
[1727097127140,3.4983,142.95,142.92,3.4989]
[1727097127439,3.48939642,143.0,142.89,1.4605]
[1727097127440,11.77,142.96,142.89,1.4605]
[1727097127840,11.77,142.96,142.9,3.4994]
[1727097128146,11.77,142.96,142.88,1.453]
[1727097128347,3.4991,142.92,142.89,3.4995]
[1727097128741,14.5591,142.96,142.89,3.4995]
[1727097129041,11.77,142.92,142.84,13.1001]
[1727097129545,3.4996,142.9,142.87,3.5]
[1727097130342,1.4289,142.95,142.86,11.77]
[1727097130744,1.4289,142.95,142.87,4.92963528]
[1727097130943,3.4988,142.93,142.9,3.4992]
[1727097131444,14.5591,142.96,142.87,1.3632]
[1727097131846,3.4991,142.92,142.88,3.4997]
[1727097132041,3.4991,142.92,142.87,1.3632]
[1727097132550,3.4985,142.94,142.87,1.3632]
[1727097132748,14.5591,142.96,142.87,13.1332]
[1727097132945,14.5591,142.96,142.88,3.45385977]
[1727097133252,14.5591,142.96,142.9,3.4993]
[1727097133552,3.4986,142.94,142.88,3.45385977]
[1727097134047,3.4986,142.94,142.91,3.4991]
[1727097134738,3.4987,142.93,142.91,3.4991]
[1727097135346,3.4986,142.94,142.91,3.4991]
[1727097135557,14.5591,142.96,142.91,3.4991]
[1727097136048,3.4986,142.94,142.91,3.4991]
[1727097136353,14.5591,142.96,142.91,3.4991]
[1727097137152,3.4986,142.94,142.91,3.4991]
[1727097138656,3.4986,142.94,142.92,3.4989]
[1727097138952,3.4983,142.95,142.92,3.4989]
[1727097140052,3.4985,142.94,142.91,3.4991]
[1727097140444,13.1231,142.98,142.91,3.4991]
[1727097140646,11.77,142.96,142.9,3.4992]
[1727097141252,3.4988,142.93,142.9,3.4992]
[1727097141449,3.4988,142.93,142.91,3.4991]
[1727097141651,11.77,142.96,142.91,3.4991]
[1727097141955,3.4985,142.94,142.92,3.4989]
[1727097142643,3.4989,142.93,142.89,1.3446]
[1727097143147,11.77,142.95,142.9,3.4993]
[1727097143953,11.77,142.94,142.88,1.3982]
[1727097144255,11.77,142.92,142.84,14.5332]
[1727097144458,11.77,142.92,142.88,3.4999]
[1727097144644,3.4994,142.91,142.88,3.4999]
[1727097145456,3.4994,142.9,142.88,3.4999]
[1727097145653,11.77,142.92,142.87,3.5001]
[1727097145854,11.77,142.92,142.84,14.5332]
[1727097145855,3.4997,142.89,142.84,14.5332]
[1727097146050,3.4997,142.89,142.84,2.7632]
[1727097146252,11.77,142.92,142.87,3.5]
[1727097146451,3.4996,142.9,142.87,3.5]
[1727097149654,11.77,142.94,142.84,14.5332]
[1727097151049,3.4994,142.9,142.88,3.4999]
[1727097151249,11.77,142.9,142.82,11.77]
[1727097151652,3.5001,142.88,142.85,3.5005]
[1727097151861,11.77,142.9,142.82,11.77]
[1727097152352,3.5,142.88,142.85,3.5005]
[1727097152545,11.77,142.9,142.81,14.4823]
[1727097152749,1.4549,142.94,142.81,2.7123]
[1727097152750,3.501,142.84,142.81,2.7123]
[1727097152953,3.501,142.84,142.81,1.346]
[1727097153147,11.77,142.88,142.81,1.346]
[1727097153859,3.5003,142.87,142.81,1.346]
[1727097154756,1.4678,142.89,142.81,1.346]
[1727097155354,3.5002,142.87,142.84,3.5008]
[1727097155761,11.77,142.88,142.81,1.346]
[1727097156054,3.5006,142.86,142.83,3.501]
[1727097156260,11.77,142.88,142.83,3.501]
[1727097156763,3.5003,142.87,142.84,3.5009]
[1727097159064,11.77,142.88,142.81,1.346]
[1727097159455,11.77,142.86,142.79,3.45374669]
[1727097159963,3.5008,142.85,142.82,3.5012]
[1727097161162,11.77,142.88,142.79,15.22374669]
[1727097161463,1.4678,142.89,142.79,13.1619]
[1727097161660,3.5,142.88,142.85,3.5005]
[1727097162265,1.4678,142.89,142.8,3.51439497]
[1727097162563,11.77,142.9,142.81,11.77]
[1727097162760,11.77,142.9,142.81,15.25217209]
[1727097162960,3.5002,142.87,142.81,15.25217209]
[1727097163558,3.5002,142.87,142.84,3.5007]
[1727097163965,3.5002,142.87,142.85,3.5006]
[1727097164867,11.77,142.9,142.81,15.25217209]
[1727097165568,3.5004,142.87,142.84,3.5008]
[1727097166163,11.77,142.88,142.83,3.501]
[1727097166568,3.5005,142.86,142.83,3.501]
[1727097167166,3.5005,142.86,142.84,3.5009]
[1727097167559,3.5007,142.85,142.79,4.86798116]
[1727097170071,3.5007,142.85,142.79,1.3919]
[1727097170274,11.77,142.86,142.79,1.3919]
[1727097170777,3.5011,142.84,142.81,3.5014]
[1727097173768,3.5011,142.83,142.81,3.5014]
[1727097174374,7.53,142.82,142.78,80.28987688]
[1727097174575,11.0311,142.83,142.78,87.81987688]
[1727097175284,7.53,142.83,142.81,3.5015]
[1727097176168,11.0312,142.83,142.81,3.5015]
[1727097177680,7.53,142.83,142.81,3.5015]
[1727097178679,7.53,142.83,142.8,3.5017]
[1727097179272,11.0313,142.83,142.8,3.5017]
[1727097179875,3.5014,142.82,142.8,3.5017]
[1727097180274,7.53,142.82,142.74,6.65734056]
[1727097180477,7.53,142.79,142.74,7.53]
[1727097180981,7.53,142.78,142.74,7.53]
[1727097181281,7.53,142.77,142.69,10.20658319]
[1727097181476,7.53,142.77,142.73,7.53]
[1727097181780,7.53,142.78,142.73,7.53]
[1727097181985,7.53,142.8,142.74,7.53]
[1727097182176,7.53,142.8,142.76,7.53]
[1727097182371,12.3771,142.81,142.77,3.5024]
[1727097182576,11.0318,142.81,142.77,3.5024]
[1727097183578,7.53,142.81,142.76,7.53]
[1727097183783,7.53,142.8,142.76,7.53]
[1727097184284,1.3544,142.85,142.77,7.53]
[1727097184478,7.53,142.82,142.77,7.53]
[1727097185682,7.53,142.82,142.79,3.502]
[1727097186385,7.53,142.81,142.79,3.502]
[1727097187390,3.5023,142.79,142.76,3.5027]
[1727097187582,7.53,142.78,142.73,7.53]
[1727097189188,11.0325,142.78,142.75,3.503]
[1727097189684,7.53,142.78,142.76,3.5028]
[1727097190288,7.53,142.79,142.73,7.53]
[1727097190482,7.53,142.79,142.77,3.5026]
[1727097190681,7.53,142.79,142.75,7.53]
[1727097191286,11.0321,142.79,142.76,3.5027]
[1727097191481,7.53,142.79,142.75,7.53]
[1727097192784,7.53,142.81,142.76,7.53]
[1727097192992,7.53,142.8,142.75,7.53]
[1727097193196,11.0321,142.79,142.76,3.5027]
[1727097193884,11.0321,142.79,142.77,3.5026]
[1727097194284,7.53,142.79,142.77,3.5026]
[1727097198399,7.53,142.79,142.74,7.53]
[1727097198792,7.53,142.79,142.7,11.2384]
[1727097198997,7.53,142.79,142.74,7.53]
[1727097199406,7.53,142.79,142.7,11.2384]
[1727097199594,7.53,142.79,142.74,7.53]
[1727097199894,11.0319,142.8,142.74,7.53]
[1727097200200,7.53,142.8,142.78,3.5023]
[1727097203906,7.53,142.81,142.75,7.53]
[1727097204097,7.53,142.81,142.77,7.53]
[1727097204298,1.4147,142.84,142.78,7.53]
[1727097204503,1.4147,142.84,142.79,7.53]
[1727097204504,11.031,142.84,142.79,7.53]
[1727097205108,11.031,142.84,142.81,3.5014]
[1727097206506,7.53,142.84,142.83,3.5011]
[1727097207505,7.53,142.84,142.82,3.5013]
[1727097207708,7.53,142.83,142.77,11.07726143]
[1727097207908,7.53,142.81,142.76,7.53]
[1727097208208,11.0316,142.81,142.78,3.5022]
[1727097209610,11.0316,142.81,142.75,11.712]
[1727097209611,11.0316,142.81,142.79,3.5021]
[1727097210314,11.0316,142.81,142.78,3.5023]
[1727097210907,7.53,142.79,142.77,3.5026]
[1727097211303,3.502,142.8,142.77,11.0326]
[1727097211509,688.4076546,143.18,142.79,7.53]
[1727097211510,7.53,142.84,142.79,7.53]
[1727097212114,11.0311,142.84,142.8,3.5017]
[1727097212516,11.0311,142.84,142.79,7.53]
[1727097212710,1.3322,142.88,142.79,7.53]
[1727097212909,7.53,142.85,142.79,7.53]
[1727097213820,7.53,142.85,142.82,3.5012]
[1727097214012,7.53,142.85,142.79,7.53]
[1727097214311,3.5009,142.84,142.81,3.5014]
[1727097215408,3.5014,142.82,142.79,3.502]
[1727097215604,11.77,142.83,142.74,11.77]
[1727097216116,3.5015,142.82,142.79,3.502]
[1727097217318,1.4391,142.85,142.76,15.20549393]
[1727097217319,13.2091,142.85,142.76,15.20549393]
[1727097217614,13.2091,142.85,142.76,11.77]
[1727097217816,4.9399,142.85,142.78,11.77]
[1727097218014,4.9399,142.85,142.78,15.26225579]
[1727097218811,4.9399,142.85,142.82,3.5012]
[1727097219216,3.5009,142.84,142.78,11.77]
[1727097219519,3.5009,142.84,142.81,3.5015]
[1727097220118,3.5009,142.84,142.82,3.5014]
[1727097220315,1.4681,142.86,142.78,11.77]
[1727097220514,1.4681,142.86,142.78,15.9739]
[1727097220714,1.4681,142.86,142.83,3.501]
[1727097221521,3.5008,142.85,142.83,3.501]
[1727097221815,13.2381,142.86,142.78,15.9739]
[1727097222220,3.5008,142.85,142.78,15.9739]
[1727097222422,13.2381,142.86,142.78,15.9739]
[1727097222720,1.4681,142.86,142.85,3.5007]
[1727097222916,16.6023,142.88,142.85,3.5007]
[1727097222917,13.1022,142.88,142.85,3.5007]
[1727097223416,3.5002,142.87,142.85,3.5007]
[1727097223619,13.1244,142.9,142.86,3.5003]
[1727097224120,11.77,142.91,142.83,11.77]
[1727097224617,15.2693,142.91,142.89,3.4997]
[1727097225215,15.2693,142.91,142.83,11.77]
[1727097225415,1.4353,142.92,142.83,11.77]
[1727097225619,1.4353,142.92,142.88,3.4998]
[1727097226117,11.77,142.91,142.83,11.77]
[1727097226819,3.4994,142.9,142.83,11.77]
[1727097228119,3.4994,142.9,142.86,3.5003]
[1727097232219,3.4994,142.9,142.87,3.5001]
[1727097232622,3.4997,142.89,142.86,3.5003]
[1727097232815,11.77,142.91,142.83,11.77]
[1727097233213,3.5004,142.86,142.83,3.501]
[1727097234527,11.77,142.85,142.81,3.5015]
[1727097235027,15.2708,142.85,142.81,3.5015]
[1727097235719,15.2708,142.85,142.82,3.5014]
[1727097236431,11.77,142.87,142.83,3.5011]
[1727097237120,3.5004,142.86,142.83,3.5011]
[1727097239619,3.5002,142.87,142.84,3.5008]
[1727097240219,11.77,142.88,142.85,3.5006]
[1727097241126,15.27,142.88,142.85,3.5006]
[1727097241925,11.77,142.86,142.78,4.2039]
[1727097242333,3.5008,142.85,142.82,3.5012]
[1727097242931,11.77,142.86,142.81,3.5015]
[1727097243132,11.77,142.84,142.76,80.37888884]
[1727097243528,3.5013,142.83,142.8,3.5017]
[1727097245638,3.5014,142.82,142.79,3.502]
[1727097246130,3.5014,142.82,142.75,6.66788311]
[1727097246536,3.5014,142.82,142.8,3.5019]
[1727097247532,3.5014,142.82,142.79,3.502]
[1727097247734,11.77,142.82,142.74,6.6680515]
[1727097247934,11.77,142.82,142.73,4.1793]
[1727097248836,11.77,142.81,142.73,4.1793]
[1727097249241,3.5023,142.79,142.76,3.5028]
[1727097249738,11.77,142.81,142.75,3.503]
[1727097250037,11.77,142.81,142.73,4.1793]
[1727097250242,11.77,142.78,142.72,80.3931178]
[1727097250542,11.77,142.77,142.68,7.52918277]
[1727097251037,11.77,142.77,142.68,14.19967096]
[1727097251539,11.77,142.77,142.68,14.19909288]
[1727097251842,3.5027,142.77,142.69,11.77]
[1727097252033,11.77,142.78,142.69,11.77]
[1727097253045,11.77,142.8,142.71,11.77]
[1727097253342,15.2721,142.8,142.76,3.5027]
[1727097253542,11.77,142.8,142.76,3.5027]
[1727097254337,7.54,142.79,142.76,3.5027]
[1727097254638,7.54,142.78,142.75,3.503]
[1727097255044,2.7932,142.83,142.73,7.54]
[1727097255232,7.54,142.78,142.73,7.54]
[1727097255641,7.54,142.78,142.76,3.5027]
[1727097256540,3.5022,142.79,142.76,3.5027]
[1727097263344,11.78,142.82,142.73,11.78]
[1727097263748,11.78,142.82,142.78,3.5022]
[1727097263948,11.78,142.82,142.74,4.189]
[1727097264349,11.78,142.82,142.77,3.5025]
[1727097264653,11.78,142.82,142.74,1.4552]
[1727097264654,11.78,142.8,142.74,1.4552]
[1727097264854,11.78,142.8,142.76,3.5028]
[1727097265350,11.78,142.8,142.74,1.4552]
[1727097265551,3.5025,142.78,142.75,3.503]
[1727097266953,3.5025,142.78,142.75,3.5029]
[1727097267154,3.5022,142.79,142.71,11.78]
[1727097267651,3.5022,142.79,142.76,3.5028]
[1727097267955,3.5022,142.79,142.71,11.78]
[1727097268156,15.2819,142.8,142.71,11.78]
[1727097268454,15.2819,142.8,142.77,3.5025]
[1727097269351,3.5021,142.79,142.76,3.5028]
[1727097269857,11.78,142.8,142.71,11.78]
[1727097270053,3.5024,142.78,142.75,3.5029]
[1727097270549,3.5026,142.77,142.74,3.5032]
[1727097271358,3.5027,142.77,142.74,3.5032]
[1727097271550,11.78,142.78,142.74,3.5032]
[1727097272553,3.5033,142.75,142.72,3.5037]
[1727097272951,3.5033,142.75,142.7,8.12762009]
[1727097272952,3.503,142.76,142.73,3.5035]
[1727097276554,3.503,142.76,142.74,3.5033]
[1727097277362,11.78,142.8,142.7,1.4626]
[1727097277753,3.5026,142.78,142.75,3.503]
[1727097277955,11.78,142.8,142.7,1.4626]
[1727097278262,3.46050998,142.82,142.73,3.5034]
[1727097278263,3.503,142.76,142.73,3.5034]
[1727097278462,11.043,142.76,142.73,3.5034]
[1727097281961,11.043,142.76,142.74,3.5033]
[1727097282567,7.54,142.76,142.74,3.5033]
[1727097282865,3.5028,142.77,142.7,1.4626]
[1727097282866,11.0428,142.77,142.75,3.5031]
[1727097283364,2.7932,142.83,142.73,7.54]
[1727097283568,7.54,142.79,142.74,7.54]
[1727097284064,11.0423,142.79,142.76,3.5027]
[1727097284265,7.54,142.78,142.76,3.5027]
[1727097284465,11.0424,142.78,142.75,3.503]
[1727097284667,7.54,142.76,142.71,7.54]
[1727097284871,7.54,142.76,142.75,3.5031]
[1727097287263,7.54,142.76,142.72,7.54]
[1727097287867,7.54,142.76,142.74,3.5032]
[1727097288258,11.043,142.76,142.72,7.54]
[1727097288460,7.54,142.75,142.7,9.0026]
[1727097288770,7.54,142.75,142.73,3.5034]
[1727097290163,11.0432,142.75,142.72,3.5038]
[1727097290469,7.54,142.75,142.7,9.0026]
[1727097291566,7.54,142.75,142.73,3.5034]
[1727097293866,7.54,142.75,142.72,3.5037]
[1727097294570,11.0429,142.76,142.73,3.5036]
[1727097297872,11.0426,142.77,142.74,3.5032]
[1727097298180,7.54,142.77,142.72,7.54]
[1727097298871,11.0428,142.77,142.73,3.5035]
[1727097299070,11.0428,142.77,142.72,7.54]
[1727097300071,11.0428,142.77,142.74,3.5033]
[1727097300267,7.54,142.77,142.72,7.54]
[1727097300462,3.5025,142.78,142.75,3.503]
[1727097300875,3.5026,142.77,142.75,3.503]
[1727097301272,7.54,142.78,142.7,1.4626]
[1727097301575,11.0429,142.76,142.71,7.54]
[1727097301770,7.54,142.76,142.71,7.54]
[1727097301976,7.54,142.75,142.7,9.0026]
[1727097302779,3.5035,142.74,142.71,3.5039]
[1727097303178,7.54,142.75,142.7,9.0026]
[1727097303573,7.54,142.72,142.62,7.0125]
[1727097303876,11.0442,142.71,142.68,3.5047]
[1727097305274,3.5043,142.7,142.67,11.045]
[1727097305475,3.5043,142.7,142.67,3.505]
[1727097307080,11.0442,142.71,142.66,7.54]
[1727097307275,11.0442,142.71,142.67,7.54]
[1727097307583,7.54,142.71,142.68,3.5047]
[1727097307779,7.54,142.71,142.67,7.54]
[1727097307978,11.0438,142.73,142.69,3.5044]
[1727097308181,1.4635,142.77,142.67,7.54]
[1727097308371,7.54,142.71,142.67,7.54]
[1727097308575,11.0442,142.71,142.66,7.54]
[1727097309081,7.54,142.71,142.68,3.5047]
[1727097309279,11.044,142.72,142.68,7.54]
[1727097309478,7.54,142.72,142.68,7.54]
[1727097309674,7.54,142.72,142.69,3.5044]
[1727097310178,3.5038,142.73,142.69,11.0444]